Workbook

Sheet Inicio
B7: "… la hoja de cálculo es un instrumento extraordinariamente potente, de fácil uso y versátil pero puede contener graves errores ocultos derivados de fallos cometidos en el diseño del modelo “
B10: ……. Consejo: Audite continuamente sus diseños…
A13: Indice General
B15: Consideraciones técnicas y de actividad
C16: Capacidad de producción. Óptima - Normal - Prevista
C17: Estimación de activdad - Ratios de actividad.
C18: Estimación de ingresos
D19: Ingresos anuales previstos
D20: Ingreso medios por carrera
C21: Insumos básicos (conusmo medio y precio combustible)
C22: Otros costes no gastos (financieros y oportunidad)
B24: Costes estimados - Actividad Normal
B26: Resultado Analítico y KPI`s
C27: Resultado Analítico. Normal y Previsto
C28: KPI. Normal y Simulador
B30: Consejos de navegacion a tráves de los vínculos del libro
B31: Volver al vínculo anterior | F31: ALT + ← | G31: ALT+FLECHA IZQUIERDA
B32: Volver al vínculo siguiente | F32: ALT + → | G32: ALT+FLECHA DERECHA

Sheet Capacidad y Actividad
B1: Consideraciones técnicas y de actividad
A2: =HYPERLINK(Hipervinculos!C7,Hipervinculos!D7) -> N1 | B2: Capacidad de Producción | D2: Óptima | E2: Normal | F2: Prevista
B3: Nº de taxis | D3: 1 | E3: 1 | F3: 1
B4: Dias operativos Año | D4: 365 | E4: 325 | F4: 280
B5: Nº de conductores | D5: 2 | E5: 2 | F5: 2
B6: Horas totales año | D6: =D5*8*D4*D3 -> 5840 | E6: =E5*8*E4*E3 -> 5200 | F6: =F5*8*F4*F3 -> 4480
B7: Horas ajustadas año | D7: 0.2 | E7: 0.3 | F7: 0.35
D8: =D6-(D6*D7) -> 4672 | E8: =E6-(E6*E7) -> 3640 | F8: =F6-(F6*F7) -> 2912
A9: =HYPERLINK(Hipervinculos!C4,Hipervinculos!D4) -> N2 | B9: Estimación de Actividad | D9: =D2 -> Óptima | E9: =E2 -> Normal | F9: =F2 -> Prevista
B10: Total horas de servicio disponible | D10: =D8 -> 4672 | E10: =E8 -> 3640 | F10: =F8 -> 2912
B11: Tasa de horas de espera (parada) | D11: 0.08 | E11: 0.1 | F11: 0.07
D12: =D11*D10 -> 373.76 | E12: =E11*E10 -> 364 | F12: =F11*F10 -> 203.84
B13: Horas en marcha | D13: =D10-D12 -> 4298.24 | E13: =E10-E12 -> 3276 | F13: =F10-F12 -> 2708.16
B14: Km recorridos al año | D14: 120000 | E14: 100000 | F14: 95000
B15: % tiempo de ocupación | D15: 0.9 | E15: 0.75 | F15: 0.7
B16: Bajadas de bandera año | D16: 25000 | E16: 30000 | F16: 27000
B17: Ratios de actividad
B18: Km recorridos al año ocupado | D18: =D15*D14 -> 108000 | E18: =E15*E14 -> 75000 | F18: =F15*F14 -> 66500
B19: Km recorridos al año desocupado | D19: =D14-D18 -> 12000 | E19: =E14-E18 -> 25000 | F19: =F14-F18 -> 28500
B20: Duración media de la carrera | D20: =(D13*D15)/D16 -> 0.15473664 | E20: =(E13*E15)/E16 -> 0.0819 | F20: =(F13*F15)/F16 -> 0.07021155556
B21: Km promedio por carrera | D21: =(D14*D15)/D16 -> 4.32 | E21: =(E14*E15)/E16 -> 2.5 | F21: =(F14*F15)/F16 -> 2.462962963
B22: Promedio carrera dia | D22: =D16/D4 -> 68.49315068 | E22: =E16/E4 -> 92.30769231 | F22: =F16/F4 -> 96.42857143
A23: =HYPERLINK(Hipervinculos!C11,Hipervinculos!D11) -> N3 | B23: Estimación de Ingresos | D23: =D9 -> Óptima | E23: =E9 -> Normal | F23: =F9 -> Prevista
B24: Tarifa promedio bajada bandera
B25: Incluye | C25: 1.5 | D25: =$C$25*D16 -> 37500 | E25: =$C$25*E16 -> 45000 | F25: =$C$25*F16 -> 40500
B26: Tasa | C26: 3.15 | D26: =$C$26*D16 -> 78750 | E26: =$C$26*E16 -> 94500 | F26: =$C$26*F16 -> 85050
B27: Tarifa promedio por km ocupado | D27: 1.25 | E27: 1.15 | F27: 1.15
B28: Suplemento medio por carrera | D28: 0.25 | E28: 0.2 | F28: 0.2
B29: Ingresos anuales previstos: | D29: =(D27*(D18-D25))+(D28*D16)+D26 -> 173125 | E29: =(E27*(E18-E25))+(E28*E16)+E26 -> 135000 | F29: =(F27*(F18-F25))+(F28*F16)+F26 -> 120350
B30: Otros Ingresos Publicidad y Patrocinio | D30: =1500 -> 1500 | E30: 800 | F30: 600
B31: Ingreso medio por km recorr. ocupado | D31: =(D29+D30)/D18 -> 1.616898148 | E31: =(E29+E30)/E18 -> 1.810666667 | F31: 1.818796992
B32: Ingreso medio por km recorrido total | D32: =(D29+D30)/D14 -> 1.455208333 | E32: =(E29+E30)/E14 -> 1.358 | F32: 1.273157895
B33: Ingreso medio por carrera | D33: =(D29+D30)/D16 -> 6.985 | E33: =(E29+E30)/E16 -> 4.526666667 | F33: =(F29+F30)/F16 -> 4.47962963
A34: =HYPERLINK(Hipervinculos!C8,Hipervinculos!D8) -> N4 | B34: Insumos Básicos | D34: =D23 -> Óptima | E34: =E23 -> Normal | F34: =F23 -> Prevista
B35: Coste promedio del combustible | D35: 0.954 | E35: 0.919 | F35: 0.919
B36: Consumo promedio combustible | D36: 6 | E36: 6.2 | F36: 6.1
A37: =HYPERLINK(Hipervinculos!C12,Hipervinculos!D12) -> N5 | B37: Otros Costes No Gastos | D37: =D34 -> Óptima | E37: =E34 -> Normal | F37: =F34 -> Prevista
B38: Cosets financieros del periodo | D38: 1400 | E38: 1200 | F38: 1000
B39: Coste de oportunidad | D39: 10000 | E39: 3000 | F39: 4000

Sheet Costes Estimados
B1: Costes Estimados - Actividad Normal -
D2: Actividad Normal | F2: ='Capacidad y Actividad'!E14 -> 100000
F3: Cerntros de Costes
F4: Taxi | G4: Estructura Costes Fijos
D5: Valor | E5: % | F5: C. Variable
B6: (60-61) Consumos | D6: =F6+G6 -> 5829 | E6: =D6/$D$33 -> 0.07958113754 | F6: =SUM(F7:F11) -> 5724 | G6: =SUM(G7:G11) -> 105
B7: (602.1) Combustible | D7: =('Capacidad y Actividad'!D36*'Costes Estimados'!F2)/100 -> 6000
D8: =D7*'Capacidad y Actividad'!D35 -> 5724 | F8: =D8 -> 5724
B9: (602.2) Papelería | D9: 25 | G9: =D9 -> 25
B10: (602.3) Limpieza | D10: 50 | G10: 50
B11: (602.4) Otros complementos | D11: 30 | G11: =D11 -> 30
B12: (62) Servicios Exteriores | D12: =F12+G12 -> 4277 | E12: =D12/$D$33 -> 0.05839226715 | F12: =SUM(F13:F19) -> 875 | G12: =SUM(G13:G19) -> 3402
B13: (621) Arrendam. y Canónes | D13: =60*12 -> 720 | G13: =D13 -> 720
B14: (622.1) Servic. Mecácnica Rápida | D14: =G14+F14 -> 525 | F14: =Notas!G15 -> 445 | G14: =Notas!H15 -> 80
B15: (622.2) Servic. Electricidad | D15: =F15+G15 -> 430 | F15: =Notas!G24 -> 430
B16: (623.1) Asesoría fiscal y laboral | D16: 720 | G16: =D16 -> 720
B17: (623.1) Servicio de limpieza | D17: 192 | G17: 192
B18: (625) Seguros vehículo | D18: 860 | G18: 860
B19: (629) Otras comunicaciones | D19: =830 -> 830 | G19: =D19 -> 830
B20: (63) Impuestos | D20: =F20+G20 -> 341 | E20: =D20/$D$33 -> 0.00465554433 | F20: =SUM(F21:F22) -> 0 | G20: =SUM(G21:G22) -> 341
B21: ITV Taxi y taximetro | D21: 261 | G21: =D21 -> 261
B22: Impuestos municipales y otros | D22: 80 | G22: =D22 -> 80
B23: 64 Personal | D23: =F23+G23 -> 59500 | E23: =D23/$D$33 -> 0.8123310488 | F23: =SUM(F24:F27) -> 0 | G23: =SUM(G24:G27) -> 59500
B24: (640) Sueldos y salarios | D24: =Notas!P4 -> 42000 | G24: =D24 -> 42000
B25: (641) Indemnizaciones | D25: =Notas!P5 -> 2500 | G25: =D25 -> 2500
B26: (642) Seguridad Social Empresa | D26: =Notas!P6 -> 12600 | G26: =D26 -> 12600
B27: (649) Otros gastos sociales | D27: =Notas!P7 -> 2400 | G27: =D27 -> 2400
B28: 68 Amortizaciones | D28: =F28+G28 -> 2869 | E28: =D28/$D$33 -> 0.03916937444 | F28: =F29+F30 -> 2505 | G28: =G29+G30 -> 364
B29: Inmovilizado Intangible | D29: =G29+F29 -> 0 | F29: =Notas!O14 -> 0 | G29: =Notas!P14 -> 0
B30: Inmovilizado Material | D30: =G30+F30 -> 2869 | F30: =Notas!O17+Notas!O18 -> 2505 | G30: =Notas!P17+Notas!P18 -> 364
B31: 69 Deterioro y otras dotaciones | D31: =F31+G31 -> 430 | E31: =D31/$D$33 -> 0.005870627748 | F31: =F32 -> 80 | G31: =G32 -> 350
B32: (699) Dotación costes plurianuales | D32: =Notas!P23+Notas!O23 -> 430 | F32: =Notas!O23 -> 80 | G32: =Notas!P23 -> 350
B33: Total Costes del Periodo | D33: =D6+D12+D20+D23+D28+D31 -> 73246 | F33: =F31+F28+F23+F20+F12+F6 -> 9184 | G33: =G31+G28+G23+G20+G12+G6 -> 64062
B34: SI | C34: XX Otros costes | D34: =F34+G34 -> 18500 | E34: =D34/$D$33 -> 0.2525735194 | F34: =IF(B34="SI",F35,0) -> 0 | G34: =IF(B34="SI",G35,0) -> 18500
B35: (XXX) Financ., oportunidad y otros | D35: =G35+F35 -> 18500 | F35: =Notas!O31 -> 0 | G35: =Notas!P31 -> 18500
B36: Total Costes Ajustado | D36: =D33+D34 -> 91746 | F36: =F33+F34 -> 9184 | G36: =G34+G31+G26+G23+G15+G9 -> 90975

Sheet Rtdo Analitico y KPI
C1: Resultado Analítico | M1: KPI Normal vs Simulador
B3: Nivel de Actividad | D3: ='Capacidad y Actividad'!E2 -> Normal | F3: ='Capacidad y Actividad'!F2 -> Prevista
C4: Nivel de Actividad | D4: ='Capacidad y Actividad'!E14 -> 100000 | F4: ='Estandar Simulador'!E4 -> 95000 | K4: =(F4-D4)/D4 -> -0.05
C5: Tasa de subactividad 1 | D5: =(F4/D4)-1 -> -0.05 | F5: =F4-D4 -> -5000
C6: ='Capacidad y Actividad'!B16 -> Bajadas de bandera año | D6: ='Capacidad y Actividad'!E16 -> 30000 | F6: ='Estandar Simulador'!E5 -> 27000 | G6: 50 | K6: =(F6-D6)/D6 -> -0.1
C7: Tasa de subactividad 2 | D7: =(F6/D6)-1 -> -0.1 | F7: =F6-D6 -> -3000
B9: Ingresos | D9: Véase: | E9: =HYPERLINK(Hipervinculos!C11,Hipervinculos!E11) -> Anexo Ingresos (70..)
C10: ='Capacidad y Actividad'!B32 -> Ingreso medio por km recorrido total | D10: ='Capacidad y Actividad'!E32 -> 1.358 | F10: ='Capacidad y Actividad'!F32 -> 1.273157895
D11: =D10*D4 -> 135800 | F11: 127950 | K11: =(F11-D11)/D11 -> -0.05780559647
B12: Costes Variables
C13: Total de Costes Variables | D13: ='Costes Estimados'!F33 -> 9184 | F13: ='Estandar Simulador'!E8 -> 9184 | K13: =(F13-D13)/D13 -> 0
B14: por km recorrrido... | D14: =D13/D4 -> 0.09184 | F14: =F13/F4 -> 0.09667368421
B15: por bajada de bandera.. | D15: =D13/D6 -> 0.3061333333 | F15: =F13/F6 -> 0.3401481481
B16: Márgen de Contribución
B17: Marg. Contrib. Total | D17: =D11-D13 -> 126616 | F17: =F11-F13 -> 118766
C18: =B14 -> por km recorrrido... | D18: =D17/D4 -> 1.26616 | F18: =F17/F4 -> 1.250168421
D19: =D18/D10 -> 0.932371134 | F19: =F18/F10 -> 0.9819429516
C20: =B15 -> por bajada de bandera.. | D20: =D17/D6 -> 4.220533333 | F20: =F17/F6 -> 4.398740741
D21: =D20/D10 -> 3.10790378 | F21: =F20/F10 -> 3.454984459
B22: Costes fijos y subactividad
C23: Total Costes Fijos | D23: ='Costes Estimados'!G33 -> 64062 | F23: ='Estandar Simulador'!E9 -> 64062 | K23: =(F23-D23)/D23 -> 0
C24: =C5 -> Tasa de subactividad 1 | D24: =(D23*D5)*-1 -> 3203.1 | F24: =(F23*D5)*-1 -> 3203.1
C25: =C7 -> Tasa de subactividad 2 | D25: =(D23*D7)*-1 -> 6406.2 | F25: =(F23*D7)*-1 -> 6406.2
C26: Costes fijos imputables 1 | D26: =D23-D24 -> 60858.9 | F26: =F23-F24 -> 60858.9
C27: Costes fijos imputables 2 | D27: =D23-D25 -> 57655.8 | F27: =F23-F25 -> 57655.8
B28: Resultado Analítico Total
C29: Resultado Bruto | D29: =D17-D23 -> 62554 | F29: =F17-F23 -> 54704
C30: Rtdo. Bruto por Km | D30: =(D29)/D4 -> 0.62554 | F30: =(F29)/F4 -> 0.5758315789
C31: Rtdo. Bruto por Carrera | D31: =(D29)/D6 -> 2.085133333 | F31: =(F29)/F6 -> 2.026074074
B32: Resultado Analítico Ajustado
B33: ='Costes Estimados'!B35 -> (XXX) Financ., oportunidad y otros | D33: ='Costes Estimados'!D35 -> 18500 | F33: ='Estandar Simulador'!E10 -> 18500 | K33: =(F33-D33)/D33 -> 0
C34: Resultado Ajustado | D34: =D29-D33 -> 44054 | F34: ='Estandar Simulador'!E10 -> 18500
C35: Rtdo. Ajustado por Km | D35: =(D29-D33)/D4 -> 0.44054 | F35: =(F29-F33)/F4 -> 0.3810947368
C36: Rtdo. Ajustado por Carrera | D36: =(D29-D33)/D6 -> 1.468466667 | F36: =(F29-F33)/F6 -> 1.340888889

Sheet Estandar Simulador (hidden)
B1: Valores estandar
C3: ='Capacidad y Actividad'!E2 -> Normal | E3: ='Capacidad y Actividad'!F2 -> Prevista
B4: Nivel de Actividad | C4: ='Capacidad y Actividad'!E14 -> 100000 | E4: ='Capacidad y Actividad'!F14 -> 95000
B5: ='Capacidad y Actividad'!B16 -> Bajadas de bandera año | C5: ='Capacidad y Actividad'!E16 -> 30000 | E5: ='Capacidad y Actividad'!F16 -> 27000
B6: ='Capacidad y Actividad'!B32 -> Ingreso medio por km recorrido total | C6: ='Capacidad y Actividad'!E32 -> 1.358 | E6: ='Capacidad y Actividad'!F32 -> 1.273157895
C7: =C6*C4 -> 135800 | E7: =E6*E4 -> 120950
B8: Total de Costes Variables | C8: ='Costes Estimados'!F33 -> 9184 | E8: ='Costes Estimados'!F33 -> 9184
B9: Total Costes Fijos | C9: ='Costes Estimados'!G33 -> 64062 | E9: ='Costes Estimados'!G33 -> 64062
B10: ='Costes Estimados'!B35 -> (XXX) Financ., oportunidad y otros | C10: ='Costes Estimados'!D35 -> 18500 | E10: ='Costes Estimados'!D35 -> 18500

Sheet Notas
B1: Estimacion de costes y clasificación | J1: N_64: Personal | O1: Variable | P1: Fijo | R1: N_70: Ingresos por los servicios
J2: Para la actividad prevista como normal | M2: ='Costes Estimados'!F2 -> 100000 | O2: ='Costes Estimados'!F20 -> 0 | P2: ='Costes Estimados'!G23 -> 59500 | R2: Las estimaciones están basadas en nuestros datos históricos, así como los diferentes escenarios previstos sobre el nivel de actividad
J3: Conductores promedio anual: | M3: ='Capacidad y Actividad'!E5 -> 2
B4: N_60-61: Consumos Grupo 60 -61 Consumos | J4: 640. Sueldos y salarios | N4: =1500*14 -> 21000 | P4: =N4*M3 -> 42000 | R4: Véase Anexo: | T4: Acceso Ingresos
B5: El consumo de combustible lo estimamos según la actividad prevista en km y el coste medio del litro de gasolina | J5: 641. Indemnizaciones | N5: 2500 | P5: =N5 -> 2500 | R5: También esta relacionada con la estimación de actividad
J6: 642. Seguridad Social Empresa | M6: 0.3 | N6: =M6*N4 -> 6300 | P6: =N6*M3 -> 12600
B7: Limpieza incluye los kit básicos de limpieza diaria a realizar por el conductor | J7: 649. Otros gtoss: vestuario, seguridad, etc.. | N7: 1200 | P7: =N7*M3 -> 2400
B8: Otros complementos incluye ambientadores, agua, caramelos y otros suministros
J9: Véase: | K9: =HYPERLINK(Hipervinculos!C13,Hipervinculos!E13) -> Anexo Pesonal (64)
B10: Véase: | C10: =HYPERLINK(Hipervinculos!C8,Hipervinculos!E8) -> Anexo Consumo (60.61) | E10: N2: Estimación de actividad
C11: N4: Insumos básicos | J11: N_68: Amortización | O11: Variable | P11: Fijo
L12: Coste Adqui. | M12: V. Residual | N12: Vida Útil | O12: =O14+O17+O18 -> 2505 | P12: =P14+P17+P18 -> 364
B13: N_62: Servicios Exteriores | G13: Variable | H13: Fijo | J13: Inmovilizado Intangible:
B14: (621) Arrend. y Canónes, alquiler de garaje | F14: ='Costes Estimados'!D13 -> 720 | H14: =F14 -> 720 | J14: Licencia | L14: 50000 | P14: 0
B15: (622.1) Servicio de mecánica rápida | F15: =SUM(H15:H15) -> 80 | G15: 445 | H15: =F23 -> 80 | J15: Inmovilizado Material:
B16: Cambio de Aceite: | F16: =('Costes Estimados'!F2/15000)*5*8 -> 266.6666667 | J16: Vehículo | L16: =13175+850 -> 14025 | M16: 1500 | N16: 500000 | O16: =(L16-M16)/N16 -> 0.02505
B17: Refrigerante | F17: =('Costes Estimados'!F2/40000)*5*6 -> 75 | J17: =J2 -> Para la actividad prevista como normal | M17: =M2 -> 100000 | O17: =O16*M17 -> 2505
B18: Del sistema de frenado | F18: =('Costes Estimados'!F2/40000)*2*10 -> 50 | J18: Taxímetro, emisora, GPS… | L18: =590+200+580+275+175 -> 1820 | M18: 0 | N18: 5 | P18: =(L18-M18)/N18 -> 364
B19: Neumáticos | F19: 240
B20: Filtros - escobillas | F20: 120 | J20: Véase: | K20: =HYPERLINK(Hipervinculos!C5,Hipervinculos!E5) -> Anexo Amortizaciones (68)
B21: Amortiguadores | F21: 90
B22: Bomba del agua | F22: 50 | J22: N_69: Otras dotaciones | O22: Variable | P22: Fijo
B23: Pre-itv | F23: 80 | J23: (699.9) Otras dotaciones | O23: =SUM(O24:O26) -> 80 | P23: =SUM(P25:P26) -> 350
B24: (622.2) Servicio electricidad y electrónica | F24: =H24+G24 -> 430 | G24: =SUM(F25:F26) -> 430 | J24: Reparaciones extraordinarias plurianuales | N24: 80 | O24: =N24 -> 80
B25: Averías corrientes, estimación promedio | F25: 350 | J25: Chapa - Pintura | N25: 300 | P25: =N25 -> 300
B26: Sustitución de batería | F26: 80 | J26: Rotulaciones y distintivos del taxi | N26: 50 | P26: =N26 -> 50
B27: (62.X) Otros servicios exteriores | G27: ='Costes Estimados'!F16+'Costes Estimados'!F17+'Costes Estimados'!F18+'Costes Estimados'!F19 -> 0 | H27: ='Costes Estimados'!G16+'Costes Estimados'!G17+'Costes Estimados'!G18+'Costes Estimados'!G19 -> 2602
B28: Estimacion de otros servicios como asesoria fiscal-laboral, seguro vehículo, otras comunicaciones | J28: Véase: | K28: =HYPERLINK(Hipervinculos!C9,Hipervinculos!E9) -> Anexo Deterioro y otras dotaciones (69)
J30: N_XX: Otros costes. Oportunidad, financieros, Bº deseado.. | O30: Variable | P30: Fijo
B31: Véase: | C31: =HYPERLINK(Hipervinculos!C14,Hipervinculos!E14) -> Anexo Servicios Exteriores (62) | O31: =SUM(O32:O34) -> 0 | P31: =SUM(P32:P34) -> 18500
J32: Costes financieros anuales considerados | M32: SI | N32: 2500 | O32: 0 | P32: =IF(M32="SI",N32,0) -> 2500
A33: N_63: Impuestos | J33: Coste de oportunidad del año | M33: SI | N33: 1000 | O33: 0 | P33: =IF(M33="SI",N33,0) -> 1000
A34: Se recogen los impuestos diversos relacionados con el ejercicio de la actividad | J34: Beneficio deseado | M34: SI | N34: 15000 | O34: 0 | P34: =IF(M34="SI",N34,0) -> 15000
J36: Véase: | K36: =HYPERLINK(Hipervinculos!C12,Hipervinculos!E12) -> Anexo Otros costes (XX)
B37: Véase: | C37: =HYPERLINK(Hipervinculos!C10,Hipervinculos!E10) -> Anexo Impuestos (63)

Sheet KPIs
B3: Análisis de la Subactividad | G3: Márgenes y Resultados | T3: KPI's del sector
C4: Kilómetros año | E4: Carreras año | H4: Ingresos Estimados | J4: Costes Directos (C.V) | L4: Costes Fijos Imputables | N4: Costes Subactividad | P4: Rtd. Analítico Total | R4: Rtd. Analítico Ajustado | U4: Ingreso por Km recorrido | W4: Rtd. Bruto por Km | Y4: Rtd. Bruto por Carrera | AA4: Rtd. Ajustado por Km | AC4: Rtd. Ajustado por Carrera
B6: Normal | C6: ='Rtdo Analitico y KPI'!D4 -> 100000 | E6: ='Rtdo Analitico y KPI'!D6 -> 30000 | G6: Normal | H6: ='Rtdo Analitico y KPI'!D11 -> 135800 | J6: ='Rtdo Analitico y KPI'!D13 -> 9184 | L6: ='Rtdo Analitico y KPI'!D26 -> 60858.9 | N6: =INT('Rtdo Analitico y KPI'!D24) -> 3203 | P6: ='Rtdo Analitico y KPI'!D29 -> 62554 | R6: ='Rtdo Analitico y KPI'!D33 -> 18500 | T6: Normal | U6: ='Rtdo Analitico y KPI'!D11/'Rtdo Analitico y KPI'!D4 -> 1.358 | W6: ='Rtdo Analitico y KPI'!D30 -> 0.62554 | Y6: ='Rtdo Analitico y KPI'!D31 -> 2.085133333 | AA6: ='Rtdo Analitico y KPI'!D35 -> 0.44054 | AC6: ='Rtdo Analitico y KPI'!D36 -> 1.468466667
B7: Simulación | C7: ='Rtdo Analitico y KPI'!F4 -> 95000 | E7: ='Rtdo Analitico y KPI'!F6 -> 27000
B8: Tasa y Coste de Subactividad | C8: ='Rtdo Analitico y KPI'!D5 -> -0.05 | E8: ='Rtdo Analitico y KPI'!D7 -> -0.1 | G8: Simulación | H8: ='Rtdo Analitico y KPI'!F11 -> 127950 | J8: ='Rtdo Analitico y KPI'!F13 -> 9184 | L8: ='Rtdo Analitico y KPI'!F26 -> 60858.9 | N8: =INT('Rtdo Analitico y KPI'!F24) -> 3203 | P8: ='Rtdo Analitico y KPI'!F29 -> 54704 | R8: ='Rtdo Analitico y KPI'!F33 -> 18500 | T8: Simulación | U8: ='Rtdo Analitico y KPI'!F11/'Rtdo Analitico y KPI'!F4 -> 1.346842105 | W8: ='Rtdo Analitico y KPI'!F30 -> 0.5758315789 | Y8: ='Rtdo Analitico y KPI'!F31 -> 2.026074074 | AA8: ='Rtdo Analitico y KPI'!F35 -> 0.3810947368 | AC8: ='Rtdo Analitico y KPI'!F36 -> 1.340888889
C9: ='Rtdo Analitico y KPI'!F24 -> 3203.1 | E9: ='Rtdo Analitico y KPI'!F25 -> 6406.2
G10: Variación | H10: =H8-H6 -> -7850 | J10: =J8-J6 -> 0 | L10: =L8-L6 -> 0 | N10: =N8-N6 -> 0 | P10: =P8-P6 -> -7850 | R10: =R8-R6 -> 0 | T10: Variación | U10: =U8-U6 -> -0.01115789474 | W10: =W8-W6 -> -0.04970842105 | X10: =X8-X6 -> 0 | Y10: -0.05905925926 | AA10: =AA8-AA6 -> -0.05944526316 | AC10: -0.1275777778
H11: =H10/H6 -> -0.05780559647 | J11: =J10/J6 -> 0 | L11: =L10/L6 -> 0 | N11: =N10/N6 -> 0 | P11: =P10/P6 -> -0.1254915753 | R11: =R10/R6 -> 0 | U11: =U10/U6 -> -0.008216417332 | W11: =W10/W6 -> -0.07946481608 | X11: =X10/X6 ->  | Y11: -0.02832397253 | AA11: -0.134937266 | AC11: -0.08687822521

Sheet Hipervinculos
A1: Hipervinculo al documento Word llamado: | D1: Anexo.docx
A2: No convertir en tabla para evitar ordenar
A3: Ruta | B3: Marcador de Word | C3: Hipervinculo | D3: Nombre 1 | E3: Nombre 2
A4: Anexo.docx | B4: Actividad | C4: =A4&"#"&B4 -> Anexo.docx#Actividad | D4: N2
A5: Anexo.docx | B5: Amortizaciones | C5: Anexo.docx#Amortizaciones | E5: Anexo Amortizaciones (68)
A6: Anexo.docx | B6: Aspectos_legales | C6: Anexo.docx#Aspectos_legales
A7: Anexo.docx | B7: Capacidad | C7: Anexo.docx#Capacidad | D7: N1
A8: Anexo.docx | B8: Consumos | C8: Anexo.docx#Consumos | D8: N4 | E8: Anexo Consumo (60.61)
A9: Anexo.docx | B9: Deterioro | C9: Anexo.docx#Deterioro | E9: Anexo Deterioro y otras dotaciones (69)
A10: Anexo.docx | B10: Impuestos | C10: Anexo.docx#Impuestos | E10: Anexo Impuestos (63)
A11: Anexo.docx | B11: Ingresos | C11: Anexo.docx#Ingresos | D11: N3 | E11: Anexo Ingresos (70..)
A12: Anexo.docx | B12: Oportunidad | C12: Anexo.docx#Oportunidad | D12: N5 | E12: Anexo Otros costes (XX)
A13: Anexo.docx | B13: Personal | C13: Anexo.docx#Personal | E13: Anexo Pesonal (64)
A14: Anexo.docx | B14: Servicios | C14: Anexo.docx#Servicios | E14: Anexo Servicios Exteriores (62)
